bitfinex-derivatives/quotes_BTCF0:USTF0_20241221
["timestamp","ask_amount","ask_price","bid_price","bid_amount"]
[1734801262069,0.0599,97271.0,97258.0,0.001]
[1734801262070,0.3608,97268.0,97258.0,0.001]
[1734801262367,0.00891918,97271.0,97269.0,0.051421]
[1734801262563,0.0551,97272.0,97271.0,0.05142]
[1734801262865,0.12210456,97279.0,97278.0,0.051417]
[1734801263769,0.0558,97287.0,97282.0,0.051414]
[1734801263770,0.107212,97287.0,97282.0,0.051414]
[1734801263961,0.11639944,97287.0,97282.0,0.051414]
[1734801264159,0.11639944,97287.0,97284.0,0.051413]
[1734801264355,0.06498744,97287.0,97285.0,0.051413]
[1734801264561,0.0558,97287.0,97285.0,0.412213]
[1734801264762,0.12210456,97288.0,97278.0,0.001]
[1734801265067,0.12210456,97288.0,97287.0,0.051412]
[1734801265370,0.0598,97299.0,97287.0,0.051412]
[1734801265672,0.0598,97299.0,97298.0,0.051406]
[1734801266571,0.06883085,97299.0,97298.0,0.051406]
[1734801266769,0.06883085,97299.0,97298.0,0.052406]
[1734801267263,0.06883085,97299.0,97298.0,0.053406]
[1734801268060,0.0598,97299.0,97298.0,0.053406]
[1734801269061,0.01003342,97302.0,97298.0,0.053406]
[1734801270069,0.01003342,97302.0,97298.0,0.052406]
[1734801270275,0.01003342,97302.0,97298.0,0.053406]
[1734801273068,0.01003342,97302.0,97298.0,0.052406]
[1734801275375,0.00897292,97310.0,97298.0,0.052406]
[1734801276476,0.0552,97316.0,97298.0,0.110206]
[1734801276675,0.0552,97316.0,97315.0,0.051397]
[1734801276881,0.06442822,97316.0,97315.0,0.051397]
[1734801277179,0.0552,97316.0,97315.0,0.051397]
[1734801277367,0.18180456,97328.0,97326.0,0.051391]
[1734801277772,0.0597,97328.0,97326.0,0.051391]
[1734801278177,0.0597,97328.0,97308.0,0.3608]
[1734801278473,0.051391,97327.0,97318.0,0.051395]
[1734801278671,0.051397,97316.0,97311.0,0.051399]
[1734801278875,0.051398,97313.0,97308.0,0.3608]
[1734801279071,0.051398,97313.0,97309.0,0.0514]
[1734801279295,0.3608,97317.0,97308.0,0.3608]
[1734801279296,0.0514,97310.0,97308.0,0.3608]
[1734801279480,0.3608,97317.0,97293.0,0.18409894]
[1734801279481,0.3608,97309.0,97293.0,0.18409894]
[1734801279675,0.051404,97302.0,97296.0,0.051407]
[1734801279982,0.0595,97301.0,97296.0,0.051407]
[1734801280280,0.1154,97301.0,97299.0,0.051405]
[1734801280480,0.166805,97301.0,97299.0,0.051405]
[1734801281180,0.051411,97289.0,97284.0,0.051413]
[1734801281378,0.051411,97289.0,97282.0,0.3608]
[1734801281572,0.051407,97296.0,97279.0,0.051416]
[1734801281767,0.3608,97300.0,97288.0,0.051411]
[1734801282178,0.46224713,97300.0,97282.0,0.051414]
[1734801282480,0.051412,97287.0,97285.0,0.051413]
[1734801283174,0.002,97296.0,97278.0,0.00154189]
[1734801283175,0.051416,97280.0,97278.0,0.00154189]
[1734801283678,0.056,97279.0,97278.0,0.00154189]
[1734801284287,0.056,97279.0,97260.0,0.18409894]
[1734801284475,0.10144713,97270.0,97257.0,0.051427]
[1734801284678,0.10144713,97270.0,97252.0,0.3608]
[1734801284679,0.3608,97262.0,97252.0,0.3608]
[1734801285076,0.051429,97255.0,97252.0,0.3608]
[1734801285578,0.051429,97255.0,97252.0,0.41223]
[1734801286477,0.051429,97255.0,97252.0,0.3608]
[1734801286682,0.05143,97253.0,97252.0,0.3608]
[1734801287481,0.15237212,97285.0,97252.0,0.3608]
[1734801287689,0.1269928,97825.0,97252.0,0.3608]
[1734801287690,0.19338778,97341.0,97340.0,0.3608]
[1734801287980,0.02062634,97353.0,97352.0,0.051377]
[1734801288173,0.0549,97369.0,97352.0,0.051377]
[1734801288377,0.0549,97369.0,97365.0,0.13162353]
[1734801288574,0.0549,97369.0,97368.0,0.3608]
[1734801289981,0.1,97400.0,97379.0,0.051363]
[1734801290177,0.0549,97395.0,97387.0,0.051359]
[1734801290369,0.0549,97395.0,97394.0,0.7216]
[1734801291180,0.0549,97395.0,97394.0,1.60730821]
[1734801291380,0.003,97395.0,97394.0,1.60730821]
[1734801292278,0.01544,97415.0,97394.0,1.55695321]
[1734801292486,0.051344,97416.0,97414.0,0.7216]
[1734801292683,0.051339,97425.0,97414.0,0.7216]
[1734801292878,0.0696,97429.0,97424.0,0.3608]
[1734801293078,0.12993191,97429.0,97428.0,0.3608]
[1734801293379,0.10394986,97429.0,97428.0,0.3608]
[1734801293574,0.06033191,97429.0,97428.0,0.3608]
[1734801293883,0.34536,97432.0,97428.0,0.68776637]
[1734801294486,0.34536,97432.0,97428.0,1.16329733]
[1734801294487,0.0568,97431.0,97428.0,1.16329733]
[1734801294985,0.051337,97429.0,97428.0,1.16329733]
[1734801295580,0.051337,97429.0,97428.0,0.3618]
[1734801296692,0.351337,97429.0,97428.0,0.001]
[1734801296989,0.351337,97429.0,97428.0,0.3618]
[1734801297491,0.353337,97429.0,97428.0,0.3618]
[1734801297787,0.053337,97429.0,97428.0,0.3618]
[1734801297987,0.353337,97429.0,97428.0,0.3618]
[1734801298190,0.354337,97429.0,97428.0,0.3618]
[1734801298576,0.054337,97429.0,97428.0,0.3618]
[1734801298978,0.053337,97429.0,97428.0,0.3618]
[1734801300381,0.051337,97429.0,97428.0,0.3608]
[1734801300581,0.054337,97429.0,97428.0,0.3618]
[1734801301287,0.051337,97429.0,97428.0,0.3618]
[1734801301493,0.051341,97421.0,97420.0,0.16092197]
[1734801302095,0.051344,97415.0,97414.0,0.24261594]
[1734801302392,0.051347,97410.0,97409.0,0.3608]
[1734801302984,0.051348,97408.0,97407.0,0.01171594]
[1734801303394,0.351348,97408.0,97407.0,0.01171594]
[1734801303583,0.051354,97397.0,97396.0,0.3608]
[1734801304881,0.055354,97397.0,97396.0,0.3608]
[1734801305599,0.06421416,97397.0,97396.0,0.3608]
[1734801306305,0.055354,97397.0,97396.0,0.3608]
[1734801306586,0.066728,97446.0,97396.0,0.3608]
[1734801306587,0.051325,97453.0,97442.0,0.05133]
[1734801306802,0.05132,97461.0,97454.0,0.051323]
[1734801306991,0.05132,97461.0,97452.0,0.3608]
[1734801306992,0.05132,97461.0,97460.0,0.3608]
[1734801307194,0.06046223,97461.0,97460.0,0.3608]
[1734801309096,0.30570141,97470.0,97460.0,0.3608]
[1734801309298,0.35701641,97470.0,97469.0,0.3608]
[1734801309701,0.36858321,97470.0,97469.0,0.3608]
[1734801310096,0.05132,97461.0,97460.0,0.3618]
[1734801310397,0.05132,97461.0,97460.0,0.3608]
[1734801311002,0.051328,97446.0,97445.0,0.3608]
[1734801311997,0.051317,97467.0,97445.0,0.3608]
[1734801312198,0.051323,97456.0,97455.0,0.3608]
[1734801313805,0.051319,97464.0,97456.0,0.051323]
[1734801314008,0.051319,97464.0,97463.0,0.3608]
[1734801316105,0.051319,97464.0,97463.0,0.3618]
[1734801316501,0.051319,97464.0,97463.0,0.3608]
[1734801316708,0.051319,97464.0,97463.0,0.3618]
[1734801317205,0.051319,97464.0,97463.0,0.001]
[1734801317996,0.01386682,97469.0,97456.0,0.0551]
[1734801318205,0.051318,97464.0,97463.0,0.3618]
[1734801319107,0.06533254,97464.0,97463.0,0.3618]
[1734801319310,0.051318,97464.0,97463.0,0.3618]
[1734801320621,0.0142065,97466.0,97463.0,0.3618]
[1734801320896,0.3762,97484.0,97463.0,0.3618]
[1734801321097,0.051313,97475.0,97474.0,0.3608]
[1734801323032,0.051313,97475.0,97474.0,0.3618]
[1734801323610,0.02955145,97484.0,97474.0,0.3618]
[1734801324009,0.051313,97475.0,97474.0,0.3618]
[1734801324412,0.051313,97475.0,97474.0,0.3608]
[1734801324606,0.051313,97475.0,97474.0,0.001]
[1734801324817,0.05132,97462.0,97461.0,0.30407367]
[1734801326013,0.051322,97458.0,97457.0,0.1153]
[1734801326905,0.3608,97483.0,97457.0,0.1153]
[1734801326906,0.05131,97480.0,97457.0,0.1153]
[1734801327115,0.051318,97465.0,97464.0,0.3608]
[1734801327615,0.01410755,97482.0,97464.0,0.3608]
[1734801327816,0.051318,97465.0,97464.0,0.3608]
[1734801328822,0.051318,97465.0,97464.0,0.3618]
[1734801329121,0.06515455,97465.0,97464.0,0.3618]
[1734801329324,0.06515455,97465.0,97464.0,0.3608]
[1734801329511,0.06615455,97465.0,97464.0,0.3618]
[1734801330417,0.051314,97473.0,97464.0,0.3618]
[1734801330621,0.051309,97482.0,97474.0,0.051313]
[1734801330821,0.051306,97488.0,97481.0,0.3608]
[1734801331007,0.72057389,97494.0,97481.0,0.3608]
[1734801331210,0.051303,97493.0,97481.0,0.3608]
[1734801331415,0.72061389,97494.0,97481.0,0.3608]
[1734801331720,0.051308,97485.0,97481.0,0.3608]
[1734801332217,0.051308,97484.0,97481.0,0.3608]
[1734801332518,0.051308,97484.0,97481.0,0.3618]
[1734801332716,0.051308,97484.0,97481.0,0.413109]
[1734801333121,0.35925388,97494.0,97486.0,0.051307]
[1734801333122,0.051305,97491.0,97486.0,0.051307]
[1734801333423,0.1,97500.0,97490.0,0.3608]
[1734801333625,0.1513,97500.0,97499.0,0.3608]
[1734801334119,0.1,97500.0,97499.0,0.3608]
[1734801335222,0.1513,97500.0,97499.0,0.3608]
[1734801335412,0.1513,97500.0,97499.0,0.64864658]
[1734801335616,0.1513,97500.0,97499.0,0.65064658]
[1734801336222,0.1513,97500.0,97499.0,0.64964658]
[1734801336832,0.1513,97500.0,97499.0,0.3618]
[1734801340320,0.1513,97500.0,97499.0,0.001]
[1734801340620,0.051305,97489.0,97488.0,0.30599188]
[1734801341220,0.3608,97564.0,97509.0,0.037]
[1734801341420,0.58183123,97582.0,97545.0,0.051276]
[1734801341628,0.051262,97572.0,97558.0,0.051269]
[1734801341824,0.17029524,97582.0,97560.0,0.3608]
[1734801341825,0.01423101,97577.0,97560.0,0.3608]
[1734801342223,0.06549001,97577.0,97560.0,0.3608]
[1734801342526,0.051259,97577.0,97565.0,0.051265]
[1734801342725,0.051259,97577.0,97576.0,0.3608]
[1734801343124,0.063,97577.0,97576.0,0.3608]
[1734801343835,0.114259,97577.0,97576.0,0.3608]
[1734801344619,0.064,97577.0,97576.0,0.7216]
[1734801345241,0.001,97577.0,97576.0,0.7226]
[1734801345928,0.051257,97582.0,97576.0,0.7216]
[1734801346128,0.001,97577.0,97576.0,0.7226]
[1734801346635,0.063,97585.0,97576.0,0.7226]
[1734801346832,0.063,97585.0,97584.0,0.3608]
[1734801347227,0.01407907,97602.0,97584.0,0.3608]
[1734801347426,0.051246,97601.0,97600.0,0.3608]
[1734801347833,0.114246,97601.0,97600.0,0.3608]
[1734801349133,0.114246,97601.0,97600.0,0.3618]
[1734801350536,0.051246,97601.0,97600.0,0.3618]
[1734801350738,0.114246,97601.0,97600.0,0.3618]
[1734801351227,0.12841885,97601.0,97600.0,0.3618]
[1734801351928,0.114246,97601.0,97600.0,0.3618]
[1734801353439,0.114246,97601.0,97600.0,0.001]
[1734801358936,0.114246,97601.0,97600.0,0.3618]
[1734801359350,0.051246,97601.0,97600.0,0.3618]
[1734801361344,0.051242,97610.0,97600.0,0.3618]
[1734801361542,0.051242,97610.0,97609.0,0.3608]
[1734801361731,0.114242,97610.0,97609.0,0.3608]
[1734801361934,0.051242,97610.0,97609.0,0.3608]
[1734801362134,0.051239,97616.0,97609.0,0.3608]
[1734801362334,0.07730696,97622.0,97614.0,0.3608]
[1734801362543,0.01430696,97622.0,97621.0,0.3608]
[1734801362845,0.051235,97624.0,97621.0,0.3608]
[1734801363236,0.05123,97632.0,97621.0,0.3608]
[1734801363551,0.063,97626.0,97621.0,0.3608]
[1734801363737,0.063,97626.0,97625.0,0.3608]
[1734801364134,0.051233,97627.0,97625.0,0.3608]
[1734801364340,0.114233,97627.0,97625.0,0.3608]
[1734801365041,0.06168386,97627.0,97625.0,0.3608]
[1734801365435,0.06168386,97626.0,97625.0,0.3608]
[1734801366544,0.06168386,97626.0,97625.0,0.3618]
[1734801367142,0.06168386,97626.0,97625.0,0.001]
[1734801367850,0.051237,97618.0,97617.0,0.3608]
[1734801368147,0.11292086,97618.0,97617.0,0.3608]
[1734801370245,0.12730564,97618.0,97617.0,0.3618]
[1734801370745,0.12730564,97618.0,97617.0,0.32542727]
[1734801370954,0.051244,97606.0,97605.0,0.3608]
[1734801371148,0.11292786,97606.0,97605.0,0.3608]
[1734801371454,0.05125,97595.0,97594.0,0.3608]
[1734801371744,0.11293386,97595.0,97594.0,0.3608]
[1734801372950,0.1244834,97595.0,97594.0,0.3608]
[1734801373344,0.06279954,97595.0,97594.0,0.3608]
[1734801373646,0.1244834,97595.0,97594.0,0.3618]
[1734801373847,0.11293386,97595.0,97594.0,0.3618]
[1734801374045,0.051247,97601.0,97594.0,0.3608]
[1734801374244,0.051249,97596.0,97594.0,0.3618]
[1734801374640,0.051249,97596.0,97594.0,0.3608]
[1734801374844,0.001,97595.0,97594.0,0.3618]
[1734801375353,0.052249,97596.0,97594.0,0.3618]
[1734801375742,0.052249,97596.0,97594.0,0.93430381]
[1734801376757,0.06168386,97595.0,97594.0,0.93430381]
[1734801376949,0.06168386,97595.0,97594.0,0.3618]
[1734801379749,0.06168386,97595.0,97594.0,0.6068251]
[1734801380952,0.051249,97596.0,97594.0,0.6068251]
[1734801381153,0.051249,97596.0,97594.0,0.3618]
[1734801382254,0.051249,97596.0,97594.0,0.2606]
[1734801382452,0.00888967,97601.0,97594.0,0.2606]
[1734801382653,0.05125,97595.0,97594.0,0.2606]
[1734801382852,0.05125,97595.0,97594.0,0.2596]
[1734801383053,0.00921721,97616.0,97594.0,0.2606]
[1734801383254,0.051247,97601.0,97594.0,0.2606]
[1734801383458,0.051247,97601.0,97594.0,0.2596]
[1734801383657,0.11293086,97601.0,97594.0,0.2606]
[1734801384667,0.11293086,97601.0,97600.0,0.24494218]
[1734801385752,0.11293086,97601.0,97594.0,0.56570318]
[1734801385753,0.11293086,97601.0,97597.0,0.24494218]
[1734801385948,0.051247,97600.0,97597.0,0.24494218]
[1734801386754,0.0369,97612.0,97597.0,0.24494218]
[1734801387055,0.051241,97611.0,97609.0,0.3608]
[1734801387467,0.06168386,97610.0,97609.0,0.3608]
[1734801387763,0.06168386,97610.0,97597.0,0.001]
[1734801387953,0.04608382,97612.0,97597.0,0.001]
[1734801387954,0.06168386,97601.0,97597.0,0.001]
[1734801388161,0.051248,97599.0,97597.0,0.001]
[1734801389067,0.051249,97597.0,97596.0,0.66590318]
[1734801389256,0.11293286,97597.0,97596.0,0.66538318]
[1734801389762,0.11293286,97597.0,97596.0,0.3608]
[1734801390866,0.11293286,97597.0,97596.0,0.001]
[1734801391063,0.12217728,97597.0,97596.0,0.001]
[1734801391259,0.08815,97594.0,97593.0,0.24511103]
[1734801391463,0.14983386,97594.0,97593.0,0.24511103]
[1734801391660,0.38815,97594.0,97585.0,0.29677906]
[1734801391864,0.051258,97579.0,97578.0,0.26537913]
[1734801392064,0.051258,97579.0,97556.0,0.3608]
[1734801392065,0.051261,97573.0,97572.0,0.3094017]
[1734801392274,0.051261,97573.0,97556.0,0.3608]
[1734801392275,0.051266,97564.0,97556.0,0.3608]
[1734801392471,0.412066,97564.0,97563.0,0.27493507]
[1734801392768,0.412066,97564.0,97528.0,0.0525]
[1734801392769,0.0369,97558.0,97529.0,0.056]
[1734801392960,0.051284,97530.0,97529.0,0.056]
[1734801393356,0.051284,97530.0,97528.0,0.30270226]
[1734801393774,8.865e-05,97529.0,97528.0,0.30270226]
[1734801394164,8.865e-05,97529.0,97526.0,0.3608]
[1734801394666,0.051285,97527.0,97526.0,0.3608]
[1734801396064,0.051285,97527.0,97526.0,0.3648]
[1734801396266,0.10112934,97527.0,97526.0,0.18613346]
[1734801396570,0.04984434,97527.0,97526.0,0.18613346]
[1734801396766,0.04984434,97527.0,97523.0,0.3608]
[1734801396963,0.04984434,97527.0,97526.0,0.005]
[1734801397164,8.865e-05,97529.0,97526.0,0.005]
[1734801397467,8.865e-05,97529.0,97522.0,0.15136514]
[1734801397468,0.002,97527.0,97522.0,0.15136514]
[1734801397667,0.002,97527.0,97516.0,0.051291]
[1734801397874,0.002,97527.0,97514.0,0.25822349]
[1734801398264,0.00676464,97518.0,97514.0,0.55822349]
[1734801398562,0.12181952,97525.0,97521.0,0.051288]
[1734801398563,0.03721952,97525.0,97521.0,0.051288]
[1734801399068,0.03721952,97525.0,97523.0,0.051287]
[1734801399265,0.00108865,97529.0,97528.0,0.051285]
[1734801399465,0.15232215,97540.0,97522.0,0.3608]
[1734801399674,0.15232215,97540.0,97530.0,0.051284]
[1734801399967,0.20360115,97540.0,97530.0,0.051284]
[1734801400174,0.051281,97536.0,97522.0,0.3608]
[1734801400564,0.004,97529.0,97522.0,0.3608]
[1734801400766,0.004,97529.0,97514.0,0.25822349]
[1734801400970,0.3648,97529.0,97514.0,0.25822349]
[1734801401680,0.004,97529.0,97514.0,0.25822349]
[1734801401876,0.051284,97530.0,97514.0,0.25822349]
[1734801402668,0.051284,97530.0,97514.0,0.26322349]
[1734801402873,0.3608,97539.0,97529.0,0.051284]
[1734801403374,0.18922215,97552.0,97530.0,0.3608]
[1734801403575,0.18922215,97552.0,97538.0,0.3608]
[1734801404078,0.051278,97541.0,97531.0,0.0545]
[1734801404264,0.3608,97549.0,97531.0,0.0545]
[1734801404469,0.051281,97536.0,97531.0,0.0545]
[1734801404670,0.051276,97545.0,97531.0,0.0545]
[1734801404863,0.051277,97544.0,97531.0,0.0545]
[1734801405067,0.3608,97549.0,97531.0,0.0545]
[1734801405267,0.006,97539.0,97537.0,0.05128]
[1734801405477,0.412074,97549.0,97539.0,0.051279]
[1734801405676,0.3608,97549.0,97539.0,0.051279]
[1734801405885,0.006,97545.0,97539.0,0.051279]
[1734801406584,0.051276,97546.0,97539.0,0.051279]
[1734801406779,0.36452,97549.0,97531.0,0.0545]
[1734801406973,0.051278,97541.0,97531.0,0.0545]
[1734801407481,0.002,97545.0,97531.0,0.0545]
[1734801407482,0.002,97545.0,97537.0,0.05128]
[1734801408278,0.051276,97544.0,97539.0,0.001]
[1734801408573,0.051278,97540.0,97531.0,0.0545]
[1734801408780,0.051282,97533.0,97531.0,0.0545]
[1734801409578,0.3608,97532.0,97531.0,0.0545]
[1734801410282,0.3608,97541.0,97531.0,0.105783]
[1734801410478,0.088178,97542.0,97531.0,0.106783]
[1734801410682,0.18922215,97542.0,97531.0,0.0555]
[1734801410883,0.051283,97533.0,97531.0,0.001]
[1734801411272,0.3608,97532.0,97531.0,0.001]
[1734801412175,0.051279,97539.0,97521.0,0.3608]
[1734801412878,0.05128,97538.0,97529.0,0.051284]
[1734801413376,0.05128,97538.0,97531.0,0.001]
[1734801413780,0.39834,97540.0,97531.0,0.001]
[1734801413986,0.001,97538.0,97535.0,0.051281]
[1734801415280,0.001,97538.0,97527.0,0.051285]
[1734801415477,0.3608,97537.0,97521.0,0.3608]
[1734801415672,0.051284,97531.0,97524.0,0.051287]
[1734801417086,0.3608,97537.0,97526.0,0.051286]
[1734801417377,0.3608,97537.0,97524.0,0.002]
[1734801417582,0.051284,97530.0,97524.0,0.003]
[1734801418181,0.3608,97537.0,97531.0,0.051283]
[1734801418479,0.15232215,97534.0,97531.0,0.051283]
[1734801419272,0.15232215,97534.0,97526.0,0.001]
[1734801419470,0.051282,97533.0,97526.0,0.001]
[1734801420283,0.051282,97533.0,97529.0,0.051284]
[1734801420482,0.15300572,97527.0,97521.0,0.3608]
[1734801420978,0.051287,97525.0,97521.0,0.3608]
[1734801421179,0.15300572,97527.0,97525.0,0.051286]
[1734801421485,0.18278658,97531.0,97521.0,0.3608]
[1734801421785,0.18278658,97531.0,97530.0,0.051284]
[1734801422788,0.0632731,97531.0,97530.0,0.051284]
[1734801425687,0.051284,97530.0,97529.0,0.3608]
[1734801426788,0.051289,97520.0,97516.0,0.051291]
[1734801426987,0.4292,97529.0,97516.0,0.051291]
[1734801427184,0.3608,97521.0,97509.0,0.051294]
[1734801427881,0.3608,97521.0,97510.0,0.10095317]
[1734801428085,0.30746782,97520.0,97510.0,0.10095317]
[1734801428275,0.30746782,97520.0,97519.0,0.051289]
[1734801428792,0.30746782,97520.0,97519.0,0.412089]
[1734801428996,0.06328768,97520.0,97519.0,0.412089]
[1734801430082,0.1532864,97524.0,97519.0,0.3668]
[1734801430280,0.1532864,97524.0,97523.0,0.051287]
[1734801431186,0.23525775,97530.0,97523.0,0.051287]
[1734801431383,0.23525775,97530.0,97520.0,0.10095317]
[1734801431690,0.23525775,97530.0,97519.0,0.3678]
[1734801431691,0.051289,97520.0,97519.0,0.3648]
[1734801432194,0.54477375,97530.0,97507.0,0.00883947]
[1734801432384,0.54477375,97530.0,97523.0,0.007]
[1734801433094,0.54477375,97530.0,97523.0,0.002]
[1734801433295,0.051286,97525.0,97523.0,0.002]
[1734801433689,0.051289,97520.0,97501.0,0.3608]
[1734801433884,0.3608,97511.0,97501.0,0.3608]
[1734801434098,0.051296,97508.0,97501.0,0.3608]
[1734801434293,0.0369,97503.0,97501.0,0.3608]
[1734801434493,0.3608,97502.0,97484.0,0.051308]
[1734801434688,0.3608,97494.0,97477.0,0.05142805]
[1734801434889,0.051305,97489.0,97479.0,0.05131]
[1734801435194,0.051306,97489.0,97477.0,0.00011705]
[1734801435395,0.412108,97483.0,97477.0,0.00011705]
[1734801436202,0.051311,97478.0,97477.0,0.00011705]
[1734801437588,0.11446986,97478.0,97477.0,0.00093588]
[1734801437906,0.15378965,97478.0,97477.0,0.00093588]
[1734801438197,0.15378965,97478.0,97477.0,0.05224788]
[1734801438398,0.04578965,97478.0,97477.0,0.05224788]
[1734801438608,8.669e-05,97478.0,97477.0,0.41931184]
[1734801438810,8.669e-05,97478.0,97477.0,0.47062384]
[1734801439098,0.0369,97484.0,97483.0,0.051308]
[1734801439304,0.051311,97478.0,97477.0,0.01033337]
[1734801439596,0.412111,97478.0,97477.0,0.00093588]
[1734801440202,0.412111,97478.0,97461.0,0.3608]
[1734801440203,0.051315,97472.0,97464.0,0.051318]
[1734801441204,0.36249001,97478.0,97464.0,0.051318]
[1734801441405,0.051313,97475.0,97464.0,0.051318]
[1734801441595,0.051313,97475.0,97465.0,0.00911655]
[1734801441921,0.41280101,97478.0,97466.0,0.051317]
[1734801442204,0.41280101,97478.0,97465.0,0.00911655]
[1734801442205,0.36085001,97478.0,97470.0,0.051315]
[1734801442700,0.36085001,97478.0,97465.0,0.00911655]
[1734801442701,0.001,97475.0,97465.0,0.06643455]
[1734801443005,0.001,97475.0,97466.0,0.3608]
[1734801443409,0.36085001,97478.0,97470.0,0.054315]
[1734801443707,0.0369,97476.0,97466.0,0.31458237]
[1734801443999,0.051314,97472.0,97466.0,0.31458237]
[1734801444409,0.3608,97467.0,97466.0,0.009]
[1734801444700,0.412117,97467.0,97466.0,0.009]
[1734801444907,0.412117,97467.0,97465.0,0.00011655]
[1734801445104,0.412117,97467.0,97466.0,0.013]
[1734801445898,0.0369,97471.0,97466.0,0.013]
[1734801446500,0.0369,97471.0,97466.0,0.015]
[1734801447098,0.0379,97471.0,97466.0,0.006]
[1734801448007,0.0379,97471.0,97465.0,0.00011655]
[1734801448203,0.051316,97469.0,97465.0,0.00011655]
[1734801448407,0.0379,97471.0,97465.0,0.00011655]
[1734801448611,0.051317,97467.0,97465.0,0.00011655]
[1734801448813,0.088217,97467.0,97465.0,0.00011655]
[1734801449998,0.088217,97467.0,97465.0,0.00111655]
[1734801450199,0.089217,97467.0,97465.0,0.00111655]
[1734801450693,0.0379,97467.0,97465.0,0.41323455]
[1734801450897,0.0379,97467.0,97466.0,0.0695]
[1734801451596,5.001e-05,97478.0,97466.0,0.3695]
[1734801451801,0.18369659,97493.0,97492.0,0.051304]
[1734801452109,0.18369659,97493.0,97492.0,0.412104]
[1734801452315,0.18369659,97493.0,97492.0,0.53004799]
[1734801452515,0.051291,97517.0,97492.0,0.53004799]
[1734801452709,0.051291,97516.0,97500.0,0.3608]
[1734801453112,0.051293,97513.0,97510.0,0.051294]
[1734801453306,0.0661,97519.0,97500.0,0.3608]
[1734801453500,0.0661,97519.0,97503.0,0.051298]
[1734801453501,0.051297,97506.0,97503.0,0.051298]
[1734801453912,0.3608,97513.0,97500.0,0.3608]
[1734801454213,0.051299,97502.0,97500.0,0.3608]
[1734801455006,0.0513,97499.0,97497.0,0.051301]
[1734801456212,0.002,97499.0,97497.0,0.051301]
[1734801457404,0.36148,97505.0,97497.0,0.051301]
[1734801457609,0.3608,97505.0,97504.0,0.051297]
[1734801458009,0.07553277,97519.0,97510.0,0.051294]
[1734801458317,0.051293,97512.0,97510.0,0.051294]
[1734801459111,0.051293,97512.0,97510.0,0.052294]
[1734801459512,0.051293,97512.0,97510.0,0.001]
[1734801459710,0.3608,97515.0,97504.0,0.051297]
[1734801459918,0.051297,97505.0,97497.0,0.051301]
[1734801460119,0.051297,97505.0,97498.0,0.0513]
[1734801460822,0.12211787,97507.0,97506.0,0.051296]
[1734801461416,0.12211787,97507.0,97499.0,0.0513]
[1734801461612,0.12211787,97507.0,97492.0,0.3608]
[1734801461811,0.12211787,97507.0,97504.0,0.051297]
[1734801462021,0.051296,97508.0,97492.0,0.3608]
[1734801462319,0.051296,97508.0,97506.0,0.001]
[1734801462920,0.051296,97508.0,97499.0,0.002]
[1734801463123,0.051296,97508.0,97492.0,0.3608]
[1734801463124,0.051296,97508.0,97506.0,0.051296]
[1734801464116,0.12211787,97509.0,97504.0,0.001]
[1734801464316,0.12211787,97509.0,97508.0,0.051295]
[1734801464523,0.12211787,97509.0,97501.0,0.051298]
[1734801464726,0.12211787,97509.0,97504.0,0.051297]
[1734801464727,0.051296,97508.0,97504.0,0.051297]
[1734801465418,0.051296,97508.0,97505.0,0.051297]
[1734801466024,0.051296,97508.0,97506.0,0.051296]
[1734801466025,0.002,97508.0,97506.0,0.051296]
[1734801467425,0.001,97508.0,97506.0,0.051296]
[1734801468124,0.051294,97510.0,97506.0,0.052296]
[1734801468625,0.051294,97510.0,97508.0,0.051295]
[1734801469215,0.052294,97510.0,97508.0,0.051295]
[1734801471231,0.053294,97510.0,97508.0,0.052295]
[1734801471620,0.002,97510.0,97508.0,0.052295]
[1734801471936,0.12211787,97512.0,97511.0,0.051294]
[1734801472317,0.12211787,97513.0,97511.0,0.051294]
[1734801473128,0.12211787,97513.0,97511.0,0.052294]
[1734801473425,0.051292,97514.0,97511.0,0.001]
[1734801473426,0.12211787,97514.0,97511.0,0.001]
[1734801473727,0.051293,97512.0,97511.0,0.001]
[1734801475431,0.051293,97512.0,97510.0,0.051294]
[1734801476522,0.051293,97512.0,97505.0,0.051297]
[1734801476523,0.053293,97512.0,97505.0,0.051297]
[1734801476723,0.053293,97512.0,97507.0,0.051296]
[1734801476925,0.051297,97506.0,97500.0,0.051299]
[1734801477128,0.3608,97506.0,97500.0,0.051299]
[1734801477928,0.3608,97506.0,97502.0,0.051298]
[1734801478227,0.003,97506.0,97504.0,0.051297]
[1734801479133,0.12557014,97506.0,97504.0,0.051297]
[1734801479832,0.1529367,97512.0,97505.0,0.10860943]
[1734801480021,0.05128,97537.0,97528.0,0.051285]
[1734801480226,0.05128,97537.0,97525.0,0.3608]
[1734801480425,0.05128,97537.0,97536.0,0.051281]
[1734801481627,0.05628,97537.0,97536.0,0.052281]
[1734801482133,0.05628,97537.0,97536.0,0.001]
[1734801482328,0.41708,97537.0,97536.0,0.001]
[1734801484530,0.3658,97537.0,97536.0,0.001]
[1734801485425,0.3658,97537.0,97536.0,0.0704]
[1734801485625,0.005,97537.0,97536.0,0.0704]
[1734801488330,0.005,97537.0,97536.0,0.1421]
[1734801488932,0.051268,97560.0,97558.0,0.051269]
[1734801489127,0.36144,97564.0,97561.0,0.051267]
[1734801489330,0.36144,97564.0,97542.0,0.3608]
[1734801489331,0.051268,97560.0,97550.0,0.10099535]
[1734801489638,0.05127,97557.0,97555.0,0.05127]
[1734801490132,0.05127,97557.0,97542.0,0.3608]
[1734801490133,0.051277,97543.0,97542.0,0.3608]
[1734801490440,0.051279,97540.0,97536.0,0.12068]
[1734801490627,0.3608,97548.0,97529.0,0.051284]
[1734801490828,0.051281,97535.0,97524.0,0.3608]